[Event "Chinese Championship-B Men 2024"]
[Site "Liaocheng"]
[Date "2024.04.24"]
[Round "1.1"]
[White "Xie, Wenzhe"]
[Black "Jin, Yueheng"]
[Result "0-1"]
[WhiteElo "1675"]
[BlackElo "2407"]
[PlyCount "56"]
[EventDate "2024.04.24"]
[EventType "swiss"]
[EventCountry "CHN"]
[TimeControl "5400+30"]

1. e4 {[%emt 0:00:02]} c5 {[%emt 0:00:04]} 2. Nf3 {[%emt 0:00:03]} e6 {[%emt 0:00:03]} 3. c3 {[%emt 0:00:03]} Nf6 {[%emt 0:00:04]} 4. e5 {[%emt 0:00:09]} Nd5 {[%emt 0:00:05]} 5. d4 {[%emt 0:00:03]} cxd4 {[%emt 0:00:07]} 6. cxd4 {[%emt 0:00:03]} d6 {[%emt 0:00:09]} 7. Nc3 {[%emt 0:00:14]} dxe5 {[%emt 0:00:26]} 8. Nxe5 {[%emt 0:01:36]} Nc6 {[%emt 0:00:07]} 9. Bb5 {[%emt 0:01:00]} Bd7 {[%emt 0:00:04]} 10. Bxc6 {[%emt 0:02:57]} Bxc6 {[%emt 0:00:31]} 11. Qf3 {[%emt 0:00:50]} Qc7 {[%emt 0:02:34]} 12. Nxc6 {[%emt 0:00:34]} bxc6 {[%emt 0:05:04]} 13. Nxd5 {[%emt 0:00:44]} cxd5 {[%emt 0:00:14]} 14. O-O {[%emt 0:02:00]} Be7 {[%emt 0:02:34]} 15. Qg3 {[%emt 0:03:45]} Qxg3 {[%emt 0:00:25]} 16. hxg3 {[%emt 0:00:05]} Rb8 {[%emt 0:02:19]} 17. b3 {[%emt 0:00:20]} Kd7 {[%emt 0:02:56]} 18. Bf4 {[%emt 0:00:52]} Rbc8 {[%emt 0:01:11]} 19. Rac1 {[%emt 0:00:37]} Ba3 {[%emt 0:00:12]} 20. Rxc8 {[%emt 0:00:35]} Rxc8 {[%emt 0:00:02]} 21. Rb1 {[%emt 0:06:10]} Rc2 {[%emt 0:01:05]} 22. b4 {[%emt 0:00:36]} Rxa2 {[%emt 0:02:22]} 23. b5 {[%emt 0:02:46]} Bb2 {[%emt 0:00:45]} 24. Be3 {[%emt 0:04:18]} Ra1 {[%emt 0:01:06]} 25. Rxa1 {[%emt 0:00:08]} Bxa1 {[%emt 0:00:02]} 26. Kf1 {[%emt 0:00:08]} Kc7 {[%emt 0:00:04]} 27. Ke2 {[%emt 0:01:49]} Kb6 {[%emt 0:00:05]} 28. Kd3 {[%emt 0:00:09]} Kxb5 {[%emt 0:00:20]} 0-1

[Event "Chinese Championship-B Men 2024"]
[Site "Liaocheng"]
[Date "2024.04.24"]
[Round "1.2"]
[White "Xie, Kaifan"]
[Black "Ruan, Jiaming"]
[Result "1-0"]
[WhiteElo "2393"]
[BlackElo "1670"]
[PlyCount "83"]
[EventDate "2024.04.24"]
[EventType "swiss"]
[EventCountry "CHN"]
[TimeControl "5400+30"]

1. d4 {[%emt 0:00:05]} Nf6 {[%emt 0:00:10]} 2. c4 {[%emt 0:00:33]} c5 {[%emt 0:00:14]} 3. d5 {[%emt 0:00:25]} e6 {[%emt 0:00:04]} 4. Nc3 {[%emt 0:00:21]} exd5 {[%emt 0:00:06]} 5. cxd5 {[%emt 0:00:06]} d6 {[%emt 0:00:04]} 6. e4 {[%emt 0:00:16]} g6 {[%emt 0:00:05]} 7. f4 {[%emt 0:00:48]} Bg7 {[%emt 0:00:05]} 8. Bb5+ {[%emt 0:00:05]} Nfd7 {[%emt 0:00:06]} 9. a4 {[%emt 0:00:06]} O-O {[%emt 0:00:17]} 10. Nf3 {[%emt 0:00:07]} Na6 {[%emt 0:00:09]} 11. O-O {[%emt 0:00:16]} Nb4 {[%emt 0:00:18]} 12. h3 {[%emt 0:00:32]} a6 {[%emt 0:06:58]} 13. Bc4 {[%emt 0:00:04]} f5 {[%emt 0:02:15]} 14. e5 {[%emt 0:00:16]} dxe5 {[%emt 0:02:38]} 15. d6+ {[%emt 0:00:02]} Kh8 {[%emt 0:00:27]} 16. Ng5 {[%emt 0:00:06]} e4 {[%emt 0:05:12]} 17. Be3 {[%emt 0:00:29]} Nb6 {[%emt 0:11:12]} 18. Nf7+ {[%emt 0:12:36]} Rxf7 {[%emt 0:00:08]} 19. Bxf7 {[%emt 0:00:03]} Nd3 {[%emt 1:09:32]} 20. a5 {[%emt 0:06:39]} Qf6 {[%emt 0:00:00]} 21. Qb3 {[%emt 0:04:57]} c4 {[%emt 0:00:00]} 22. Qxb6 {[%emt 0:01:23]} Qxf7 {[%emt 0:00:00]} 23. Na4 {[%emt 0:06:47]} Be6 {[%emt 0:00:00]} 24. Nc5 {[%emt 0:08:11]} Bd5 {[%emt 0:00:00]} 25. Nxd3 {[%emt 0:04:45]} exd3 {[%emt 0:00:00]} 26. Bd4 {[%emt 0:02:49]} Rc8 {[%emt 0:00:00]} 27. Rac1 {[%emt 0:03:36]} Kg8 {[%emt 0:00:00]} 28. Bxg7 {[%emt 0:09:24]} Qxg7 {[%emt 0:00:00]} 29. Qe3 {[%emt 0:03:21]} Qxb2 {[%emt 0:00:00]} 30. Rf2 {[%emt 0:01:51]} Qf6 {[%emt 0:00:00]} 31. Qxd3 {[%emt 0:06:51]} Qxd6 {[%emt 0:00:00]} 32. Qc3 {[%emt 0:00:30]} Re8 {[%emt 0:00:00]} 33. Rd2 {[%emt 0:01:09]} Qc6 {[%emt 0:00:00]} 34. Rcd1 {[%emt 0:01:24]} Bf7 {[%emt 0:00:00]} 35. Rd8 {[%emt 0:04:43]} Qe4 {[%emt 0:00:00]} 36. Rxe8+ {[%emt 0:01:40]} Qxe8 {[%emt 0:00:00]} 37. Kh2 {[%emt 0:03:00]} Qb8 {[%emt 0:00:00]} 38. Qd4 {[%emt 0:02:25]} Qc7 {[%emt 0:00:05]} 39. Qd8+ {[%emt 0:02:28]} Qxd8 {[%emt 0:00:07]} 40. Rxd8+ {[%emt 0:00:01]} Kg7 {[%emt 0:00:08]} 41. Rd7 {[%emt 0:00:05]} Kf6 {[%emt 0:00:26]} 42. Rxb7 {[%emt 0:00:06]} 1-0

[Event "Chinese Championship-B Men 2024"]
[Site "Liaocheng"]
[Date "2024.04.24"]
[Round "1.3"]
[White "Xu, Tianqi"]
[Black "Zhang, Ziji"]
[Result "0-1"]
[WhiteElo "1670"]
[BlackElo "2392"]
[PlyCount "122"]
[EventDate "2024.04.24"]
[EventType "swiss"]
[EventCountry "CHN"]
[TimeControl "5400+30"]

1. e4 {[%emt 0:00:03]} c5 {[%emt 0:00:20]} 2. Nf3 {[%emt 0:00:08]} Nc6 {[%emt 0:00:18]} 3. d4 {[%emt 0:02:17]} cxd4 {[%emt 0:03:07]} 4. Nxd4 {[%emt 0:00:04]} Nf6 {[%emt 0:01:57]} 5. Nc3 {[%emt 0:00:21]} d6 {[%emt 0:00:14]} 6. Be3 {[%emt 0:02:44]} Ng4 {[%emt 0:00:56]} 7. Bb5 {[%emt 0:12:26]} Nxe3 {[%emt 0:00:28]} 8. Nxc6 {[%emt 0:02:25]} Nxd1 {[%emt 0:00:12]} 9. Nxd8+ {[%emt 0:02:04]} Kxd8 {[%emt 0:00:06]} 10. Rxd1 {[%emt 0:00:11]} e6 {[%emt 0:00:15]} 11. O-O {[%emt 0:03:39]} a6 {[%emt 0:05:48]} 12. Ba4 {[%emt 0:04:19]} Kc7 {[%emt 0:04:05]} 13. f4 {[%emt 0:03:45]} Be7 {[%emt 0:18:56]} 14. g4 {[%emt 0:16:51]} Rd8 {[%emt 0:05:08]} 15. f5 {[%emt 0:04:12]} b5 {[%emt 0:05:36]} 16. Bb3 {[%emt 0:01:10]} Bf6 {[%emt 0:00:10]} 17. fxe6 {[%emt 0:03:54]} fxe6 {[%emt 0:00:09]} 18. g5 {[%emt 0:02:11]} Be5 {[%emt 0:02:47]} 19. Rf7+ {[%emt 0:01:53]} Kb6 {[%emt 0:00:34]} 20. a4 {[%emt 0:23:55]} b4 {[%emt 0:05:14]} 21. Ne2 {[%emt 0:03:49]} Bxb2 {[%emt 0:10:31]} 22. Nd4 {[%emt 0:01:03]} Rd7 {[%emt 0:02:14]} 23. Rxd7 {[%emt 0:03:56]} Bxd7 {[%emt 0:00:10]} 24. Nxe6 {[%emt 0:00:29]} Be5 {[%emt 0:00:45]} 25. Nd4 {[%emt 0:02:57]} Rf8 {[%emt 0:00:47]} 26. Kg2 {[%emt 0:00:46]} Rf4 {[%emt 0:16:37]} 27. Nf3 {[%emt 0:01:10]} Bc6 {[%emt 0:00:18]} 28. Nxe5 {[%emt 0:00:58]} dxe5 {[%emt 0:00:06]} 29. Bd5 {[%emt 0:00:20]} Bxa4 {[%emt 0:00:24]} 30. Rb1 {[%emt 0:00:26]} Kc5 {[%emt 0:00:31]} 31. Ra1 {[%emt 0:00:21]} Bb5 {[%emt 0:00:57]} 32. h3 {[%emt 0:00:25]} Be2 {[%emt 0:02:23]} 33. Re1 {[%emt 0:00:51]} Bc4 {[%emt 0:01:15]} 34. Rd1 {[%emt 0:00:31]} Be2 {[%emt 0:03:02]} 35. Re1 {[%emt 0:00:13]} Bb5 {[%emt 0:01:31]} 36. Ra1 {[%emt 0:00:39]} h6 {[%emt 0:00:45]} 37. gxh6 {[%emt 0:00:11]} gxh6 {[%emt 0:00:02]} 38. Ba8 {[%emt 0:01:02]} h5 {[%emt 0:00:35]} 39. Rd1 {[%emt 0:00:22]} Bc6 {[%emt 0:00:37]} 40. Bxc6 {[%emt 0:00:30]} Kxc6 {[%emt 0:00:03]} 41. Ra1 {[%emt 0:00:19]} Kb5 {[%emt 0:00:15]} 42. Rd1 {[%emt 0:00:54]} Rxe4 {[%emt 0:00:07]} 43. Kf3 {[%emt 0:00:26]} Rc4 {[%emt 0:00:14]} 44. Rd5+ {[%emt 0:00:35]} Rc5 {[%emt 0:00:06]} 45. Rd2 {[%emt 0:00:07]} a5 {[%emt 0:00:06]} 46. Ke4 {[%emt 0:00:23]} a4 {[%emt 0:00:05]} 47. Rd8 {[%emt 0:00:18]} Rxc2 {[%emt 0:00:16]} 48. Rb8+ {[%emt 0:00:40]} Kc4 {[%emt 0:00:07]} 49. Kxe5 {[%emt 0:00:28]} a3 {[%emt 0:00:10]} 50. Rc8+ {[%emt 0:00:16]} Kb3 {[%emt 0:00:04]} 51. Ra8 {[%emt 0:00:14]} a2 {[%emt 0:00:03]} 52. Kd4 {[%emt 0:00:10]} Rc1 {[%emt 0:00:05]} 53. Ra6 {[%emt 0:00:20]} a1=Q+ {[%emt 0:00:05]} 54. Rxa1 {[%emt 0:00:04]} Rxa1 {[%emt 0:00:04]} 55. Ke5 {[%emt 0:00:05]} Kc4 {[%emt 0:00:05]} 56. Kd6 {[%emt 0:00:08]} b3 {[%emt 0:00:03]} 57. Ke5 {[%emt 0:00:05]} b2 {[%emt 0:00:02]} 58. Kf4 {[%emt 0:00:10]} b1=Q {[%emt 0:00:06]} 59. Kg5 {[%emt 0:00:13]} Qe4 {[%emt 0:00:07]} 60. Kh6 {[%emt 0:00:11]} Rg1 {[%emt 0:00:08]} 61. Kxh5 {[%emt 0:00:09]} Qh7# {[%emt 0:18:49]} 0-1

[Event "Chinese Championship-B Men 2024"]
[Site "Liaocheng"]
[Date "2024.04.24"]
[Round "1.4"]
[White "Xie, Jianjun"]
[Black "Wang, Zihao(Sh)"]
[Result "1-0"]
[WhiteElo "2384"]
[BlackElo "1838"]
[PlyCount "121"]
[EventDate "2024.04.24"]
[EventType "swiss"]
[EventCountry "CHN"]
[TimeControl "5400+30"]

1. d4 {[%emt 0:00:35]} Nf6 {[%emt 0:00:08]} 2. Nf3 {[%emt 0:00:21]} e6 {[%emt 0:00:18]} 3. g3 {[%emt 0:04:12]} Be7 {[%emt 0:00:41]} 4. Bg2 {[%emt 0:00:06]} O-O {[%emt 0:00:16]} 5. O-O {[%emt 0:00:09]} d5 {[%emt 0:00:30]} 6. c4 {[%emt 0:03:18]} c6 {[%emt 0:00:59]} 7. Nbd2 {[%emt 0:03:02]} Nbd7 {[%emt 0:03:25]} 8. Qc2 {[%emt 0:00:25]} Bd6 {[%emt 0:05:11]} 9. e4 {[%emt 0:05:27]} Nxe4 {[%emt 0:03:26]} 10. Nxe4 {[%emt 0:00:03]} dxe4 {[%emt 0:00:05]} 11. Qxe4 {[%emt 0:00:10]} c5 {[%emt 0:00:55]} 12. Rd1 {[%emt 0:07:15]} Nf6 {[%emt 0:03:45]} 13. Qe2 {[%emt 0:04:41]} Qb6 {[%emt 0:07:47]} 14. Bg5 {[%emt 0:11:47]} Be7 {[%emt 0:03:37]} 15. dxc5 {[%emt 0:05:55]} Qxc5 {[%emt 0:00:39]} 16. Ne5 {[%emt 0:01:42]} Ne8 {[%emt 0:07:02]} 17. b4 {[%emt 0:12:34]} Qc7 {[%emt 0:14:34]} 18. Bf4 {[%emt 0:00:14]} g5 {[%emt 0:04:25]} 19. Bd2 {[%emt 0:03:24]} f6 {[%emt 0:01:21]} 20. Ng4 {[%emt 0:01:38]} Nd6 {[%emt 0:02:00]} 21. c5 {[%emt 0:02:56]} Nf5 {[%emt 0:00:10]} 22. Rac1 {[%emt 0:03:48]} Bd7 {[%emt 0:06:40]} 23. Bc3 {[%emt 0:01:57]} a6 {[%emt 0:01:15]} 24. Qb2 {[%emt 0:00:37]} Kg7 {[%emt 0:01:19]} 25. Qd2 {[%emt 0:01:21]} Be8 {[%emt 0:06:20]} 26. Qxg5+ {[%emt 0:00:19]} Bg6 {[%emt 0:00:05]} 27. Ne3 {[%emt 0:04:47]} Kf7 {[%emt 0:03:10]} 28. Qf4 {[%emt 0:03:40]} Rac8 {[%emt 0:00:43]} 29. Qf3 {[%emt 0:04:51]} Rb8 {[%emt 0:01:34]} 30. Nc4 {[%emt 0:00:27]} Kg8 {[%emt 0:03:29]} 31. Na5 {[%emt 0:03:22]} b5 {[%emt 0:02:34]} 32. Qc6 {[%emt 0:00:25]} Qxc6 {[%emt 0:05:29]} 33. Nxc6 {[%emt 0:00:15]} Rb7 {[%emt 0:00:18]} 34. Nd8 {[%emt 0:00:30]} Ra7 {[%emt 0:00:54]} 35. Nxe6 {[%emt 0:00:06]} Rc8 {[%emt 0:00:06]} 36. Nf4 {[%emt 0:00:19]} a5 {[%emt 0:00:51]} 37. a3 {[%emt 0:00:05]} axb4 38. axb4 {[%emt 0:00:03]} Ng7 {[%emt 0:01:25]} 39. Nd5 {[%emt 0:01:43]} Kf7 {[%emt 0:00:28]} 40. Bf1 {[%emt 0:02:39]} Rb8 {[%emt 0:00:44]} 41. Nb6 {[%emt 0:00:17]} Bd8 {[%emt 0:00:56]} 42. Bxb5 {[%emt 0:00:24]} Bxb6 {[%emt 0:00:05]} 43. cxb6 {[%emt 0:00:06]} Rab7 {[%emt 0:00:19]} 44. Bd4 {[%emt 0:02:16]} Nf5 {[%emt 0:00:16]} 45. Bc5 {[%emt 0:00:13]} Ne7 {[%emt 0:01:13]} 46. Ba6 {[%emt 0:00:18]} Rxb6 {[%emt 0:00:21]} 47. Bc4+ {[%emt 0:00:24]} Kf8 {[%emt 0:00:22]} 48. Rd7 {[%emt 0:00:45]} R6b7 {[%emt 0:00:41]} 49. Bxe7+ {[%emt 0:00:12]} Ke8 {[%emt 0:00:03]} 50. Rxb7 {[%emt 0:00:09]} Rxb7 {[%emt 0:00:02]} 51. Bc5 {[%emt 0:00:10]} Bf7 {[%emt 0:03:04]} 52. Ba6 {[%emt 0:00:32]} Rb8 {[%emt 0:00:14]} 53. Re1+ {[%emt 0:00:09]} Kd8 {[%emt 0:00:12]} 54. Re7 {[%emt 0:00:46]} Be8 {[%emt 0:00:28]} 55. Rxh7 {[%emt 0:00:18]} f5 {[%emt 0:00:38]} 56. Ba7 {[%emt 0:00:10]} Rxb4 {[%emt 0:00:10]} 57. Rb7 {[%emt 0:00:16]} Rxb7 {[%emt 0:00:04]} 58. Bxb7 {[%emt 0:00:03]} Ke7 {[%emt 0:01:48]} 59. f4 {[%emt 0:00:03]} Kf6 {[%emt 0:00:03]} 60. Kf2 {[%emt 0:00:05]} Bb5 {[%emt 0:00:05]} 61. Ke3 {[%emt 0:00:02]} 1-0

[Event "Chinese Championship-B Men 2024"]
[Site "Liaocheng"]
[Date "2024.04.24"]
[Round "1.5"]
[White "Lin, Shuhan"]
[Black "Jiang, Haochen"]
[Result "0-1"]
[WhiteElo "1656"]
[BlackElo "2381"]
[PlyCount "65"]
[EventDate "2024.04.24"]
[EventType "swiss"]
[EventCountry "CHN"]
[TimeControl "5400+30"]

1. d4 {[%emt 0:00:25]} Nf6 {[%emt 0:00:34]} 2. c4 {[%emt 0:00:19]} e6 {[%emt 0:00:08]} 3. Nf3 {[%emt 0:00:08]} d5 {[%emt 0:00:09]} 4. Nc3 {[%emt 0:00:11]} Be7 {[%emt 0:00:10]} 5. Bg5 {[%emt 0:00:50]} h6 {[%emt 0:00:17]} 6. Bh4 {[%emt 0:00:04]} O-O {[%emt 0:00:29]} 7. e3 {[%emt 0:00:08]} b6 {[%emt 0:06:50]} 8. cxd5 {[%emt 0:03:01]} exd5 {[%emt 0:02:43]} 9. Bd3 {[%emt 0:00:38]} Bb7 {[%emt 0:00:34]} 10. O-O {[%emt 0:00:56]} c5 {[%emt 0:00:30]} 11. Rc1 {[%emt 0:00:27]} Nbd7 {[%emt 0:00:49]} 12. Qc2 {[%emt 0:03:06]} c4 {[%emt 0:07:45]} 13. Bf5 {[%emt 0:00:15]} a6 {[%emt 0:03:08]} 14. a4 {[%emt 0:05:26]} g6 {[%emt 0:19:19]} 15. Bxf6 {[%emt 0:02:49]} Bxf6 {[%emt 0:04:54]} 16. Bh3 {[%emt 0:02:01]} Bc6 {[%emt 0:10:53]} 17. Rfd1 {[%emt 0:15:50]} Re8 {[%emt 0:01:56]} 18. e4 {[%emt 0:14:19]} dxe4 {[%emt 0:06:18]} 19. d5 {[%emt 0:06:41]} Bxa4 {[%emt 0:01:40]} 20. Qxa4 {[%emt 0:05:41]} b5 {[%emt 0:10:08]} 21. Nxb5 {[%emt 0:02:05]} Nb6 {[%emt 0:01:26]} 22. Qb4 {[%emt 0:00:35]} axb5 {[%emt 0:05:28]} 23. Nd4 {[%emt 0:01:24]} Nxd5 {[%emt 0:02:37]} 24. Qxb5 {[%emt 0:10:38]} Nf4 {[%emt 0:06:49]} 25. Ne6 {[%emt 0:11:15]} Nxh3+ {[%emt 0:01:44]} 26. gxh3 {[%emt 0:00:03]} Qe7 {[%emt 0:01:45]} 27. Nf4 {[%emt 0:02:40]} e3 {[%emt 0:01:33]} 28. Rc2 {[%emt 0:01:23]} Bh4 {[%emt 0:02:25]} 29. f3 {[%emt 0:01:30]} Rab8 {[%emt 0:00:29]} 30. Qa5 {[%emt 0:05:02]} Qf6 {[%emt 0:00:55]} 31. Rxc4 {[%emt 0:04:34]} e2 {[%emt 0:00:27]} 32. Nxe2 {[%emt 0:00:46]} Rxe2 {[%emt 0:00:12]} 33. Qd5 {[%emt 0:00:57]} 0-1

[Event "Chinese Championship-B Men 2024"]
[Site "Liaocheng"]
[Date "2024.04.24"]
[Round "1.6"]
[White "Wu, Yixing"]
[Black "Zhu, Zimo"]
[Result "1-0"]
[WhiteElo "2348"]
[BlackElo "1652"]
[PlyCount "91"]
[EventDate "2024.04.24"]
[EventType "swiss"]
[EventCountry "CHN"]
[TimeControl "5400+30"]

1. Nf3 {[%emt 0:00:04]} d5 {[%emt 0:00:09]} 2. g3 {[%emt 0:00:08]} c5 {[%emt 0:00:06]} 3. Bg2 {[%emt 0:00:07]} Nf6 {[%emt 0:00:05]} 4. O-O {[%emt 0:00:09]} Nc6 {[%emt 0:01:16]} 5. d4 {[%emt 0:00:09]} e6 {[%emt 0:00:08]} 6. b3 {[%emt 0:00:55]} b6 {[%emt 0:01:15]} 7. c4 {[%emt 0:02:15]} Bb7 {[%emt 0:00:40]} 8. cxd5 {[%emt 0:00:16]} Nxd5 {[%emt 0:01:05]} 9. Bb2 {[%emt 0:01:28]} Nf6 {[%emt 0:04:57]} 10. Nbd2 {[%emt 0:05:46]} Be7 {[%emt 0:05:28]} 11. Rc1 {[%emt 0:04:34]} Nb4 {[%emt 0:03:48]} 12. a3 {[%emt 0:05:26]} Na6 {[%emt 0:02:20]} 13. dxc5 {[%emt 0:00:11]} bxc5 {[%emt 0:02:50]} 14. Nc4 {[%emt 0:01:39]} O-O {[%emt 0:01:57]} 15. Qxd8 {[%emt 0:02:45]} Raxd8 {[%emt 0:02:43]} 16. Nfe5 {[%emt 0:00:12]} Bxg2 {[%emt 0:00:56]} 17. Kxg2 {[%emt 0:00:05]} Nb8 {[%emt 0:02:38]} 18. Bc3 {[%emt 0:04:47]} Nd5 {[%emt 0:02:11]} 19. Ba5 {[%emt 0:00:17]} Rc8 {[%emt 0:00:35]} 20. e4 {[%emt 0:00:26]} Nf6 {[%emt 0:01:02]} 21. f3 {[%emt 0:00:25]} Nc6 {[%emt 0:01:09]} 22. Nxc6 {[%emt 0:00:12]} Rxc6 {[%emt 0:00:02]} 23. Rfd1 {[%emt 0:00:09]} Rfc8 {[%emt 0:02:31]} 24. g4 {[%emt 0:01:47]} h6 {[%emt 0:04:44]} 25. Kg3 {[%emt 0:01:25]} Kf8 {[%emt 0:01:04]} 26. h4 {[%emt 0:00:17]} Ke8 {[%emt 0:00:27]} 27. g5 {[%emt 0:02:05]} hxg5 {[%emt 0:00:24]} 28. hxg5 {[%emt 0:00:03]} Nd7 {[%emt 0:02:30]} 29. Kg4 {[%emt 0:01:20]} Nb6 {[%emt 0:04:28]} 30. Rh1 {[%emt 0:04:39]} Nxc4 {[%emt 0:01:31]} 31. Rxc4 {[%emt 0:02:32]} f6 {[%emt 0:06:37]} 32. f4 {[%emt 0:10:12]} Kf7 {[%emt 0:01:55]} 33. gxf6 {[%emt 0:50:15]} Bxf6 {[%emt 0:00:47]} 34. e5 {[%emt 0:00:00]} Be7 {[%emt 0:02:25]} 35. Rd1 {[%emt 0:00:00]} Ke8 {[%emt 0:00:17]} 36. Kh5 {[%emt 0:00:00]} Bd8 {[%emt 0:04:43]} 37. Bxd8 {[%emt 0:00:00]} Rxd8 {[%emt 0:00:00]} 38. Rxd8+ {[%emt 0:00:00]} Kxd8 {[%emt 0:00:03]} 39. Kg6 {[%emt 0:00:00]} Rc7 {[%emt 0:01:54]} 40. b4 {[%emt 0:00:00]} cxb4 {[%emt 0:00:04]} 41. Rxc7 {[%emt 0:00:00]} Kxc7 {[%emt 0:00:02]} 42. axb4 {[%emt 0:00:00]} Kc6 {[%emt 0:00:05]} 43. f5 {[%emt 0:00:00]} exf5 {[%emt 0:00:24]} 44. e6 {[%emt 0:00:00]} Kd6 {[%emt 0:00:10]} 45. Kf7 {[%emt 0:00:00]} f4 {[%emt 0:00:02]} 46. e7 {[%emt 0:00:00]} 1-0

[Event "Chinese Championship-B Men 2024"]
[Site "Liaocheng"]
[Date "2024.04.24"]
[Round "1.7"]
[White "Guo, Runpeng"]
[Black "Jiang, Qinyu"]
[Result "0-1"]
[WhiteElo "1651"]
[BlackElo "2319"]
[PlyCount "50"]
[EventDate "2024.04.24"]
[EventType "swiss"]
[EventCountry "CHN"]
[TimeControl "5400+30"]

1. d4 {[%emt 0:00:04]} Nf6 {[%emt 0:01:00]} 2. Nc3 {[%emt 0:00:20]} d5 {[%emt 0:00:16]} 3. Bf4 {[%emt 0:00:31]} a6 {[%emt 0:04:21]} 4. e3 {[%emt 0:01:48]} e6 {[%emt 0:00:31]} 5. Nf3 {[%emt 0:03:08]} c5 {[%emt 0:00:02]} 6. a4 {[%emt 0:02:43]} Nc6 {[%emt 0:00:22]} 7. Be2 {[%emt 0:01:10]} Be7 {[%emt 0:02:50]} 8. Ne5 {[%emt 0:03:39]} Nxe5 {[%emt 0:00:39]} 9. Bxe5 {[%emt 0:00:43]} O-O {[%emt 0:00:12]} 10. O-O {[%emt 0:00:40]} b6 {[%emt 0:10:03]} 11. Bg3 {[%emt 0:06:26]} Bb7 {[%emt 0:02:02]} 12. f3 {[%emt 0:03:33]} Rc8 {[%emt 0:01:42]} 13. Qd2 {[%emt 0:04:04]} cxd4 {[%emt 0:01:49]} 14. exd4 {[%emt 0:00:57]} Nh5 {[%emt 0:00:03]} 15. Be1 {[%emt 0:08:15]} Qc7 {[%emt 0:00:37]} 16. g3 {[%emt 0:04:10]} Nf6 {[%emt 0:02:21]} 17. Bd3 {[%emt 0:03:11]} e5 {[%emt 0:08:29]} 18. dxe5 {[%emt 0:03:04]} Qxe5 {[%emt 0:00:03]} 19. Qe2 {[%emt 0:02:12]} Bc5+ {[%emt 0:06:57]} 20. Bf2 {[%emt 0:01:30]} Qh5 {[%emt 0:00:01]} 21. Rae1 {[%emt 0:08:20]} Rfe8 {[%emt 0:01:07]} 22. Qd1 {[%emt 0:03:06]} Rxe1 {[%emt 0:00:30]} 23. Qxe1 {[%emt 0:01:12]} d4 {[%emt 0:00:02]} 24. g4 {[%emt 0:07:28]} Nxg4 {[%emt 0:00:20]} 25. fxg4 {[%emt 0:04:28]} Qxg4+ {[%emt 0:00:21]} 0-1

[Event "Chinese Championship-B Men 2024"]
[Site "Liaocheng"]
[Date "2024.04.24"]
[Round "1.8"]
[White "Zhang, Di"]
[Black "Liu, Zezhou"]
[Result "1-0"]
[WhiteElo "2303"]
[BlackElo "1651"]
[PlyCount "65"]
[EventDate "2024.04.24"]
[EventType "swiss"]
[EventCountry "CHN"]
[TimeControl "5400+30"]

1. e4 {[%emt 0:00:06]} c5 {[%emt 0:00:18]} 2. Nc3 {[%emt 0:00:24]} Nc6 {[%emt 0:00:17]} 3. Bb5 {[%emt 0:00:22]} Nd4 {[%emt 0:00:39]} 4. Bc4 {[%emt 0:00:07]} Nf6 {[%emt 0:01:20]} 5. Nge2 {[%emt 0:00:22]} a6 {[%emt 0:00:29]} 6. a4 {[%emt 0:00:17]} e6 {[%emt 0:00:20]} 7. O-O {[%emt 0:00:26]} d5 {[%emt 0:00:43]} 8. exd5 {[%emt 0:00:19]} exd5 {[%emt 0:00:14]} 9. Ba2 {[%emt 0:00:07]} Bd6 {[%emt 0:00:32]} 10. d3 {[%emt 0:00:38]} Bg4 {[%emt 0:08:20]} 11. f3 {[%emt 0:00:37]} Be6 {[%emt 0:08:40]} 12. Bg5 {[%emt 0:03:17]} h6 {[%emt 0:13:01]} 13. Bf4 {[%emt 0:06:01]} Bxf4 {[%emt 0:22:56]} 14. Nxf4 {[%emt 0:00:18]} Qd6 {[%emt 0:00:05]} 15. Qd2 {[%emt 0:01:50]} O-O {[%emt 0:06:57]} 16. a5 {[%emt 0:07:42]} Rad8 {[%emt 0:04:58]} 17. Rae1 {[%emt 0:02:56]} b5 {[%emt 0:05:11]} 18. axb6 {[%emt 0:00:54]} Qxb6 {[%emt 0:00:06]} 19. Nd1 {[%emt 0:00:40]} Rd6 {[%emt 0:03:34]} 20. Kh1 {[%emt 0:01:08]} a5 {[%emt 0:01:00]} 21. Qf2 {[%emt 0:06:42]} a4 {[%emt 0:02:13]} 22. g4 {[%emt 0:04:47]} g5 {[%emt 0:03:33]} 23. Ng2 {[%emt 0:04:29]} a3 {[%emt 0:01:44]} 24. c3 {[%emt 0:03:03]} Nc6 {[%emt 0:04:29]} 25. bxa3 {[%emt 0:01:19]} Ra8 {[%emt 0:00:11]} 26. h3 {[%emt 0:02:42]} Rxa3 {[%emt 0:03:02]} 27. f4 {[%emt 0:00:40]} Nh7 {[%emt 0:01:30]} 28. fxg5 {[%emt 0:03:06]} hxg5 {[%emt 0:00:06]} 29. Rxe6 {[%emt 0:00:38]} fxe6 {[%emt 0:03:29]} 30. Qf7+ {[%emt 0:00:08]} Kh8 {[%emt 0:00:02]} 31. Qe8+ {[%emt 0:00:06]} Kg7 {[%emt 0:00:03]} 32. Rf7+ {[%emt 0:00:06]} Kh6 {[%emt 0:00:22]} 33. Qg8 {[%emt 0:00:08]} 1-0

[Event "Chinese Championship-B Men 2024"]
[Site "Liaocheng"]
[Date "2024.04.24"]
[Round "1.9"]
[White "Zhai, Bugong"]
[Black "Li, Haoyu"]
[Result "1/2-1/2"]
[WhiteElo "1651"]
[BlackElo "2233"]
[PlyCount "67"]
[EventDate "2024.04.24"]
[EventType "swiss"]
[EventCountry "CHN"]
[TimeControl "5400+30"]

1. c4 {[%emt 0:00:12]} c5 {[%emt 0:00:04]} 2. g3 {[%emt 0:00:05]} g6 {[%emt 0:00:04]} 3. Bg2 {[%emt 0:00:27]} Bg7 {[%emt 0:00:04]} 4. Nc3 {[%emt 0:00:36]} Nc6 {[%emt 0:00:06]} 5. Nf3 {[%emt 0:00:10]} Nf6 {[%emt 0:00:05]} 6. d4 {[%emt 0:00:09]} cxd4 {[%emt 0:00:11]} 7. Nxd4 {[%emt 0:00:11]} O-O {[%emt 0:00:08]} 8. O-O {[%emt 0:04:53]} Nxd4 {[%emt 0:00:07]} 9. Qxd4 {[%emt 0:00:05]} d6 {[%emt 0:00:03]} 10. e4 {[%emt 0:11:34]} Qa5 {[%emt 0:01:53]} 11. Qd3 {[%emt 0:11:31]} Be6 {[%emt 0:02:57]} 12. Nd5 {[%emt 0:07:24]} Bxd5 {[%emt 0:02:27]} 13. exd5 {[%emt 0:00:37]} Nd7 {[%emt 0:01:00]} 14. Qe2 {[%emt 0:18:07]} Rfe8 {[%emt 0:01:04]} 15. Bh3 {[%emt 0:03:31]} Qc7 {[%emt 0:02:25]} 16. Be3 {[%emt 0:02:43]} a5 {[%emt 0:01:59]} 17. Rac1 {[%emt 0:00:43]} a4 {[%emt 0:00:28]} 18. f4 {[%emt 0:03:15]} e6 {[%emt 0:00:28]} 19. dxe6 {[%emt 0:00:23]} fxe6 {[%emt 0:00:05]} 20. Rfd1 {[%emt 0:05:16]} Nc5 {[%emt 0:00:37]} 21. Rc2 {[%emt 0:00:44]} Rad8 {[%emt 0:00:51]} 22. Bg2 {[%emt 0:00:31]} b6 {[%emt 0:00:43]} 23. Bf2 {[%emt 0:01:26]} e5 {[%emt 0:01:07]} 24. fxe5 {[%emt 0:01:04]} Bxe5 {[%emt 0:01:25]} 25. Qg4 {[%emt 0:02:25]} Qg7 {[%emt 0:00:52]} 26. Bd5+ {[%emt 0:11:00]} Kh8 {[%emt 0:00:42]} 27. Bd4 {[%emt 0:01:16]} Bxd4+ {[%emt 0:02:12]} 28. Qxd4 {[%emt 0:01:06]} Re1+ {[%emt 0:03:17]} 29. Kg2 {[%emt 0:00:06]} Qxd4 {[%emt 0:01:57]} 30. Rxd4 {[%emt 0:00:07]} Kg7 {[%emt 0:01:03]} 31. Rf2 {[%emt 0:00:58]} Rd7 {[%emt 0:00:55]} 32. Bc6 {[%emt 0:01:39]} Rd8 {[%emt 0:00:40]} 33. Bd5 {[%emt 0:00:25]} Rd7 {[%emt 0:00:12]} 34. Bc6 {[%emt 0:00:07]} 1/2-1/2